bitfinex-derivatives/quotes_ETHF0:USTF0_20251203
["timestamp","ask_amount","ask_price","bid_price","bid_amount"]
[1764752817802,3.2078,3047.2,3047.1,1.5721]
[1764752818801,3.21084107,3047.2,3047.1,1.5721]
[1764752820309,0.00304107,3047.2,3047.1,1.5721]
[1764752821202,1.56004107,3047.2,3047.1,1.5721]
[1764752821409,1.557,3047.1,3047.0,1.2859]
[1764752821706,1.557,3047.1,3047.0,2.0496]
[1764752821899,0.80984107,3047.2,3047.1,1.5721]
[1764752822094,0.00304107,3047.2,3047.1,1.5721]
[1764752823602,0.00491908,3047.5,3047.1,1.5721]
[1764752823807,3.2078,3047.7,3047.6,1.4854]
[1764752823808,3.07722534,3047.7,3047.6,1.4854]
[1764752824005,3.2078,3048.2,3048.1,1.4854]
[1764752824403,4.7509,3048.2,3048.0,0.464]
[1764752824605,1.5431,3048.1,3048.0,1.9494]
[1764752824909,3.2112646,3048.2,3048.1,1.4854]
[1764752825200,4.0064646,3048.2,3048.1,1.4854]
[1764752825404,4.7543646,3048.2,3048.1,1.4854]
[1764752826612,1.5431,3048.1,3048.0,0.464]
[1764752826813,1.5431,3047.9,3047.8,0.74391908]
[1764752827413,0.7952,3047.9,3047.8,1.49031908]
[1764752827814,4.0064646,3048.2,3048.1,1.4854]
[1764752828008,3.2112646,3048.2,3048.1,1.4854]
[1764752829515,4.0064646,3048.2,3048.1,1.4854]
[1764752829714,3.2112646,3048.2,3048.1,1.4854]
[1764752830412,4.7543646,3048.2,3048.1,1.4854]
[1764752831907,3.2112646,3048.2,3048.1,1.4854]
[1764752832109,0.0034646,3048.2,3048.1,1.4854]
[1764752832418,3.2078,3049.1,3049.0,1.9494]
[1764752832613,3.2078,3049.1,3048.5,3.6718]
[1764752832614,4.7509,3049.1,3048.5,3.6718]
[1764752832810,0.7952,3048.6,3048.5,4.4108]
[1764752833017,3.2078,3049.1,3048.5,5.1572]
[1764752833413,1.5431,3048.6,3048.5,1.21185427]
[1764752833615,1.5431,3048.6,3048.5,1.95825427]
[1764752834118,0.7952,3048.6,3048.5,1.95825427]
[1764752834320,1.5431,3048.6,3048.5,1.95825427]
[1764752834619,1.5431,3048.6,3048.5,0.00885427]
[1764752836815,1.5431,3048.6,3048.5,1.21185427]
[1764752838512,3.2078,3048.7,3048.6,1.4854]
[1764752839118,1.5431,3048.6,3048.5,1.21185427]
[1764752839618,1.5431,3048.6,3048.5,1.95825427]
[1764752839820,0.7952,3048.6,3048.5,1.95825427]
[1764752840026,4.003,3048.7,3048.6,1.4854]
[1764752840220,4.7509,3048.7,3048.6,1.4854]
[1764752841128,1.5431,3048.6,3048.5,0.47285427]
[1764752841333,1.5431,3048.6,3048.5,1.95825427]
[1764752841532,4.003,3048.7,3048.6,1.4854]
[1764752841923,3.2078,3048.7,3048.6,1.4854]
[1764752842331,0.00846324,3049.1,3048.5,0.47285427]
[1764752842332,4.01146324,3049.1,3049.0,1.9494]
[1764752842529,0.00846324,3049.1,3049.0,1.9494]
[1764752845424,3.2078,3049.5,3049.4,1.4854]
[1764752845830,4.7509,3049.9,3049.8,0.739]
[1764752846037,45.5509,3049.9,3049.8,0.739]
[1764752846225,1.5431,3049.6,3049.5,0.464]
[1764752846425,0.00356704,3049.6,3049.5,1.2104]
[1764752846730,1.54666704,3049.6,3049.5,1.9494]
[1764752847130,1.54666704,3049.6,3049.5,0.464]
[1764752847331,1.54666704,3049.6,3049.0,3.6718]
[1764752848239,1.54666704,3049.6,3049.5,1.203]
[1764752849034,0.7952,3049.1,3049.0,5.1572]
[1764752849232,0.00356704,3049.6,3049.0,5.1572]
[1764752849542,1.5431,3049.1,3049.0,5.1572]
[1764752849935,1.5431,3049.1,3049.0,4.4108]
[1764752850136,1.5431,3049.1,3049.0,3.2078]
[1764752850838,0.3387,3049.0,3048.6,3.2078]
[1764752851145,1.5431,3048.6,3048.5,0.00885427]
[1764752851537,0.7952,3048.6,3048.5,1.95825427]
[1764752851837,1.5431,3048.6,3048.5,0.00885427]
[1764752852039,1.5431,3048.6,3048.5,1.21185427]
[1764752852640,3.2078,3048.9,3048.5,1.95825427]
[1764752852943,1.5431,3048.6,3048.5,0.00885427]
[1764752853436,1.5431,3048.6,3048.5,0.74785427]
[1764752853837,1.5431,3048.6,3048.5,1.97085427]
[1764752854140,40.8,3048.8,3048.7,0.763]
[1764752854537,40.8,3048.8,3048.7,1.4999]
[1764752854837,40.8,3048.8,3048.7,0.763]
[1764752855241,40.8,3048.8,3048.7,1.4999]
[1764752855839,3.2078,3048.9,3048.8,1.4999]
[1764752856634,3.2078,3049.3,3049.2,0.7314]
[1764752856940,3.2078,3049.3,3049.2,1.5214]
[1764752857146,4.7041,3049.3,3049.2,1.5214]
[1764752857443,4.7041,3049.3,3049.2,0.79]
[1764752859750,1.4963,3049.1,3049.0,1.9679]
[1764752860041,3.2078,3049.3,3049.2,1.5214]
[1764752861443,0.00356704,3049.6,3049.0,3.6543]
[1764752861651,0.00356704,3049.6,3049.5,1.9679]
[1764752862737,1.49986704,3049.6,3049.5,1.9679]
[1764752862938,1.49986704,3049.6,3049.0,3.6543]
[1764752863645,0.7521,3049.1,3049.0,4.4443]
[1764752863849,1.4963,3049.1,3049.0,1.9679]
[1764752864043,1.4963,3049.1,3049.0,0.4465]
[1764752864241,1.4963,3048.7,3048.6,1.1786029]
[1764752864443,1.4963,3048.6,3048.5,3.21665427]
[1764752864654,1.4963,3048.6,3048.5,4.00665427]
[1764752864948,1.4963,3048.6,3048.5,4.45315427]
[1764752866146,1.4963,3048.6,3048.5,3.21665427]
[1764752868152,1.4963,3048.6,3048.5,4.00665427]
[1764752868352,0.7521,3048.6,3048.5,5.18455427]
[1764752868545,44.0078,3048.9,3048.8,1.5214]
[1764752869147,44.0078,3048.9,3048.5,3.66315427]
[1764752869946,1.4963,3048.6,3048.5,5.18455427]
[1764752870654,0.7521,3048.6,3048.5,5.18455427]
[1764752871058,1.4963,3048.6,3048.5,1.24535427]
[1764752871265,1.4963,3048.6,3048.5,0.45535427]
[1764752872353,1.4963,3048.6,3048.5,1.24535427]
[1764752872748,1.4963,3048.6,3048.5,0.00885427]
[1764752876455,3.2078,3048.9,3048.5,1.97675427]
[1764752876763,3.9599,3048.9,3048.8,1.5214]
[1764752876961,4.7041,3048.9,3048.8,1.5214]
[1764752877161,3.2078,3048.9,3048.8,1.5214]
[1764752877754,3.9599,3048.9,3048.8,1.5214]
[1764752877956,3.2078,3048.9,3048.8,1.5214]
[1764752878664,0.00356704,3049.6,3049.2,1.5214]
[1764752878665,3.9599,3049.3,3049.2,1.5214]
[1764752878958,4.7041,3049.3,3049.2,1.5214]
[1764752879164,4.7041,3049.3,3049.2,0.79]
[1764752879464,1.4963,3049.1,3048.7,0.88185465]
[1764752880465,3.2078,3049.3,3049.2,1.5214]
[1764752881167,3.9599,3049.3,3049.2,1.5214]
[1764752881560,3.2078,3049.3,3049.2,1.5214]
[1764752881866,0.00356704,3049.6,3049.5,1.9679]
[1764752882067,0.00356704,3049.6,3049.5,2.84945159]
[1764752882261,0.00356704,3049.6,3049.5,1.9679]
[1764752887858,0.00491908,3049.9,3049.5,2.84945159]
[1764752888064,0.00491908,3049.9,3049.8,1.4994]
[1764752889170,0.00739423,3049.9,3049.8,1.4994]
[1764752890359,0.7346,3049.6,3049.5,1.9459]
[1764752891467,1.49359423,3049.9,3049.8,1.4994]
[1764752891672,1.4862,3049.6,3049.5,1.1812]
[1764752891861,1.4862,3049.6,3049.5,1.9459]
[1764752892976,1.4862,3049.6,3049.5,0.4465]
[1764752893276,1.4862,3049.6,3049.5,1.1812]
[1764752893574,1.4862,3049.6,3049.5,1.9459]
[1764752893971,1.4862,3049.6,3049.5,1.1812]
[1764752895177,1.4862,3049.6,3049.5,1.9459]
[1764752895370,1.4862,3049.6,3049.0,0.4465]
[1764752895571,3.9424,3049.3,3049.2,1.4994]
[1764752895771,4.694,3049.3,3049.2,0.7347]
[1764752897278,4.694,3049.3,3049.2,1.4994]
[1764752898281,4.694,3049.3,3049.2,0.7347]
[1764752898576,1.4862,3049.1,3049.0,1.9459]
[1764752898782,3.2078,3049.3,3049.2,1.4994]
[1764752899972,3.9424,3049.3,3049.2,1.4994]
[1764752900679,3.2078,3049.3,3049.2,1.4994]
[1764752900871,4.694,3049.3,3049.0,1.32805159]
[1764752901075,4.694,3049.3,3049.2,0.7347]
[1764752901578,4.694,3049.3,3049.2,1.4994]
[1764752902479,3.9424,3049.3,3049.2,1.4994]
[1764752902882,3.2078,3049.3,3049.2,1.4994]
[1764752903275,3.9424,3049.3,3049.2,1.4994]
[1764752904081,3.2078,3049.3,3049.2,1.4994]
[1764752904884,3.9424,3049.3,3049.2,1.4994]
[1764752905181,4.694,3049.3,3049.2,1.4994]
[1764752905383,3.9424,3049.3,3049.2,2.38095159]
[1764752905681,4.694,3049.3,3049.2,2.38095159]
[1764752906285,4.694,3049.3,3049.2,1.4994]
[1764752906479,4.694,3049.3,3049.2,2.38202172]
[1764752906686,3.2078,3049.3,3049.2,2.38202172]
[1764752907185,3.9424,3049.3,3049.2,2.38202172]
[1764752907488,4.694,3049.3,3049.2,0.88262172]
[1764752907786,4.694,3049.3,3049.2,1.61732172]
[1764752908382,4.694,3049.3,3049.2,2.38202172]
[1764752910586,3.9424,3049.3,3049.2,2.38202172]
[1764752910992,3.2078,3049.3,3049.2,2.38202172]
[1764752911581,3.2078,3049.8,3049.5,0.4431]
[1764752911783,3.2078,3049.8,3049.7,2.38259308]
[1764752912089,3.2078,3049.8,3049.7,1.4994]
[1764752912688,4.694,3049.8,3049.7,1.4994]
[1764752912883,3.9424,3049.8,3049.7,1.4994]
[1764752913286,3.2078,3049.8,3049.7,1.4994]
[1764752914287,3.2078,3049.8,3049.7,2.3824501]
[1764752914591,4.0101,3049.8,3049.7,2.3824501]
[1764752914987,4.7785,3049.8,3049.7,2.3824501]
[1764752915594,4.7785,3049.8,3049.7,0.8830501]
[1764752915892,1.5707,3049.7,3049.6,1.6285501]
[1764752916092,1.5707,3049.7,3049.6,2.3697501]
[1764752916293,1.5707,3049.7,3049.6,1.4867]
[1764752916687,1.5812,3049.7,3049.6,1.4867]
[1764752918489,3.21519423,3049.9,3049.8,0.7895]
[1764752918791,4.77179423,3049.9,3049.8,1.5492]
[1764752918991,1.5566,3049.8,3049.7,0.88321519]
[1764752919688,1.5566,3049.7,3049.6,0.88321519]
[1764752919885,3.26029341,3049.7,3049.6,0.88321519]
[1764752920090,1.70369341,3049.7,3049.2,1.67285081]
[1764752920290,4.7644,3049.3,3049.2,1.67285081]
[1764752920791,4.7644,3049.3,3049.2,0.88335081]
[1764752920992,4.7644,3049.3,3049.1,1.67285081]
[1764752920993,1.5566,3049.2,3049.1,1.67285081]
[1764752921597,3.2078,3049.3,3049.2,0.7895]
[1764752921598,4.7644,3049.3,3049.2,0.7895]
[1764752921896,1.5566,3049.2,3049.1,1.67285081]
[1764752922495,1.5566,3049.2,3049.1,0.88335081]
[1764752922692,1.5566,3049.1,3049.0,0.88335081]
[1764752922890,1.5566,3049.0,3048.9,0.88335081]
[1764752923090,1.5566,3049.0,3048.9,1.67285081]
[1764752923895,1.5566,3049.0,3048.9,0.88335081]
[1764752924196,1.5566,3048.9,3048.8,4.09115081]
[1764752925198,1.5566,3048.9,3048.8,0.88335081]
[1764752925687,1.5566,3048.8,3048.7,0.88335081]
[1764752925892,1.5566,3048.8,3048.7,1.67285081]
[1764752926396,45.71149341,3049.3,3048.7,2.43255081]
[1764752926589,1.5566,3048.8,3048.7,2.43255081]
[1764752927991,1.5566,3048.8,3048.7,1.5492]
[1764752928192,0.7777,3049.1,3049.0,1.232]
[1764752928393,1.5566,3049.1,3049.0,1.9917]
[1764752928796,1.5566,3049.1,3048.6,1.17759077]
[1764752929000,1.5566,3048.7,3048.6,1.5492]
[1764752929201,0.7777,3048.7,3048.6,1.5492]
[1764752929499,3.9855,3048.8,3048.7,1.5492]
[1764752929802,4.7644,3048.8,3048.7,1.5492]
[1764752930203,3.9855,3048.8,3048.7,1.5492]
[1764752931401,4.7644,3048.8,3048.7,0.7895]
[1764752931600,1.5566,3048.6,3048.5,0.45535427]
[1764752931801,1.5566,3048.6,3048.5,2.00455427]
[1764752932101,1.5566,3048.6,3048.5,1.24485427]
[1764752932501,1.5566,3048.6,3048.5,2.00455427]
[1764752933503,3.2078,3048.8,3048.7,1.5492]
[1764752933913,4.7644,3048.8,3048.7,1.5492]
[1764752936713,1.5566,3048.8,3048.7,1.5492]
[1764752936913,4.7644,3048.8,3048.7,1.5492]
[1764752937713,4.7644,3048.8,3048.7,0.7895]
[1764752938013,4.7644,3048.8,3048.7,1.5492]
[1764752938213,1.5566,3048.6,3048.5,2.00455427]
[1764752938615,1.5566,3048.6,3048.5,0.45535427]
[1764752938801,1.5566,3048.6,3048.5,2.00455427]
[1764752939407,0.7777,3048.6,3048.5,2.00455427]
[1764752940019,1.5566,3048.6,3048.5,2.00455427]
[1764752940818,0.7777,3048.6,3048.5,2.00455427]
[1764752941214,4.7644,3048.8,3048.7,1.5492]
[1764752941512,1.5566,3048.1,3048.0,3.2078]
[1764752941825,1.5566,3047.6,3047.5,1.232]
[1764752942031,0.3387,3048.0,3047.2,1.5492]
[1764752942229,1.76075778,3048.6,3047.2,1.5492]
[1764752942230,5.16839341,3048.5,3047.8,0.7895]
[1764752942429,2.71473443,3047.9,3047.8,0.79744051]
[1764752942624,2.71473443,3047.9,3047.8,1.55714051]
[1764752943129,5.92253443,3047.9,3047.8,0.79744051]
[1764752943330,5.92253443,3047.9,3047.8,1.54104051]
[1764752943830,5.14363443,3047.9,3047.8,1.54104051]
[1764752944437,4.7947,3047.9,3047.8,1.54104051]
[1764752946237,3.2078,3047.9,3047.8,1.54104051]
[1764752946924,3.9527,3047.9,3047.8,1.54104051]
[1764752947130,4.7619,3047.9,3047.8,0.79744051]
[1764752947735,4.7619,3047.9,3047.8,0.00794051]
[1764752949637,4.7619,3047.9,3047.8,0.73994051]
[1764752950039,4.7619,3047.9,3047.8,1.48354051]
[1764752950633,3.2078,3047.9,3047.8,1.48354051]
[1764752951936,4.76913259,3048.5,3048.0,0.4641]
[1764752952637,4.76913259,3048.5,3048.4,0.732]
[1764752953040,4.76913259,3048.5,3048.4,1.4756]
[1764752953941,4.76913259,3048.5,3048.4,0.732]
[1764752954145,4.76913259,3048.5,3048.4,1.4756]
[1764752954834,3.21503259,3048.5,3048.4,1.4756]
[1764752955033,0.00723259,3048.5,3048.4,1.4756]
[1764752955640,3.2078,3048.9,3048.8,1.4756]
[1764752956436,3.9527,3048.9,3048.8,1.4756]
[1764752956642,3.95674524,3048.9,3048.8,1.4756]
[1764752959241,1.5541,3048.6,3048.5,1.9397]
[1764752959543,0.7449,3048.6,3048.5,1.9397]
[1764752960146,4.76594524,3048.9,3048.8,0.732]
[1764752961041,0.7449,3048.6,3048.5,1.9397]
[1764752961444,4.76594524,3048.9,3048.8,0.732]
[1764752961644,4.76594524,3048.9,3048.8,1.4756]
[1764752961844,3.95674524,3048.9,3048.8,1.4756]
[1764752963140,4.76594524,3048.9,3048.8,1.4756]
[1764752963344,1.55814524,3048.9,3048.8,1.4756]
[1764752964742,0.00404524,3048.9,3048.8,1.4756]
[1764752964936,1.55814524,3048.9,3048.8,1.4756]
[1764752965341,0.74894524,3048.9,3048.8,1.4756]
[1764752965543,0.00404524,3048.9,3048.8,1.4756]
[1764752966239,0.00491908,3049.2,3049.1,1.4756]
[1764752966641,0.00491908,3049.2,3049.0,0.4641]
[1764752966642,0.7449,3049.7,3049.6,1.4756]
[1764752966847,1.5541,3049.6,3049.5,0.4641]
[1764752967346,1.55740769,3049.6,3049.5,1.1961]
[1764752967747,1.5541,3049.3,3049.2,1.48051908]
[1764752969356,0.7449,3049.3,3049.2,1.48051908]
[1764752970852,3.2078,3050.8,3049.8,1.4756]
[1764752971148,2.03635778,3051.5,3049.8,1.4756]
[1764752971347,40.8,3051.4,3049.8,3.5556]
[1764752971955,1.5573794,3050.9,3050.8,0.732]
[1764752972251,4.7651794,3050.9,3050.8,0.73537816]
[1764752972949,4.7651794,3050.9,3050.8,0.00337816]
[1764752981157,1.6085,3049.8,3049.7,4.7582]
[1764752981353,1.6085,3049.8,3049.7,3.2078]
[1764752981757,1.6085,3049.8,3049.7,4.0191]
[1764752982166,1.6085,3049.8,3049.7,3.21183253]
[1764752985262,1.6085,3049.8,3049.7,4.02313253]
[1764752985967,1.6085,3049.8,3049.7,3.21183253]
[1764752987469,1.6085,3049.5,3049.4,0.00491908]
[1764752988264,1.6085,3049.5,3049.4,0.00841001]
[1764752988957,1.6085,3049.5,3049.4,0.81971001]
[1764752989771,1.8841,3049.5,3049.4,0.00841001]
[1764752989971,1.6085,3049.5,3049.4,0.00841001]
[1764752990866,1.6085,3049.5,3049.4,0.81971001]
[1764752991166,1.6085,3049.5,3049.4,0.00841001]
[1764752996467,0.8005,3049.5,3049.4,1.55881001]
[1764752996672,3.2078,3050.0,3049.5,2.0218]
[1764752997070,0.8005,3049.6,3049.5,2.0218]
[1764752999174,1.6085,3049.6,3049.5,1.2827]
[1764752999371,4.8163,3049.6,3049.5,1.2827]
[1764752999568,4.8163,3049.6,3049.5,0.4714]
[1764753000674,1.6085,3049.5,3049.4,0.00841001]
[1764753002475,1.6085,3048.9,3048.8,1.69115196]
[1764753002674,5.20128025,3049.6,3048.7,3.2078]
[1764753002675,1.6085,3048.8,3048.7,3.2078]
[1764753003676,1.61117334,3048.8,3048.7,4.68569041]
[1764753003980,0.00267334,3048.8,3048.7,4.68569041]
[1764753007484,0.00267334,3048.8,3048.7,5.56554237]
[1764753007780,0.00267334,3048.8,3048.7,5.85838603]
[1764753009288,0.00267334,3048.8,3048.7,4.68569041]
[1764753009777,0.00267334,3048.8,3048.7,6.45359476]
[1764753011385,0.00267334,3048.8,3048.7,4.68569041]
[1764753012488,4.13452,3049.7,3049.6,1.4755]
[1764753012792,3.9706,3049.7,3049.6,1.4755]
[1764753013486,4.73072548,3049.7,3049.6,1.4755]
[1764753015591,4.73072548,3049.7,3049.6,0.7311]
[1764753016988,3.97482548,3049.7,3049.6,1.4755]
[1764753017194,3.21202548,3049.7,3049.6,1.4755]
[1764753017583,3.21202548,3049.7,3049.6,2.35924412]
[1764753017787,0.00491908,3050.0,3049.9,1.4755]
[1764753017990,0.00491908,3050.0,3049.9,2.65361728]
[1764753018494,0.00491908,3050.0,3049.9,5.86141728]
[1764753018793,0.00897591,3050.0,3049.9,5.86141728]
[1764753019092,0.00897591,3050.0,3049.9,4.6833]
[1764753022896,0.00897591,3050.0,3049.9,1.4755]
[1764753024189,0.77177591,3050.0,3049.9,1.4755]
[1764753025989,0.00897591,3050.0,3049.9,1.4755]
[1764753027696,3.2078,3050.4,3050.3,1.4755]
[1764753028391,1.91866824,3050.7,3050.6,1.4755]
[1764753028593,2.67857246,3050.7,3050.6,1.4755]
[1764753029195,1.5187,3050.6,3050.5,0.4537]
[1764753030994,1.5187,3050.6,3050.5,1.1848]
[1764753032203,1.15987246,3050.7,3050.5,1.9292]
[1764753032405,1.92267246,3050.7,3050.6,1.4755]
[1764753032603,2.67857246,3050.7,3050.6,1.4755]
[1764753033904,2.67857246,3050.7,3050.6,0.7311]
[1764753034201,2.67857246,3050.7,3050.5,0.4537]
[1764753034507,1.4699,3050.6,3050.5,1.245]
[1764753034707,1.4699,3050.6,3050.5,0.4537]
[1764753035106,1.4699,3050.6,3050.5,1.245]
[1764753037518,0.733,3050.6,3050.5,2.0294]
[1764753037814,1.92187246,3050.7,3050.6,1.5485]
[1764753038414,2.71167246,3050.7,3050.6,1.5485]
[1764753038615,0.0032794,3051.0,3050.9,1.5485]
[1764753038616,1.15914764,3051.0,3050.9,1.5485]
[1764753038810,2.71094764,3051.0,3050.9,1.5485]
[1764753039016,2.71094764,3051.0,3050.9,0.7959]
[1764753039713,2.71482996,3051.0,3050.9,1.55270381]
[1764753043011,0.00716172,3051.0,3050.9,1.55270381]
[1764753044024,0.76916172,3051.0,3050.9,1.55270381]
[1764753044525,1.55896172,3051.0,3050.9,0.80010381]
[1764753044721,1.55896172,3051.0,3050.9,0.00420381]
[1764753045119,1.55896172,3051.0,3050.9,0.80010381]
[1764753045315,1.55896172,3051.0,3050.9,1.55270381]
[1764753045830,1.55896172,3051.0,3050.9,0.80010381]
[1764753046032,1.55896172,3051.0,3050.9,0.00420381]
[1764753046723,1.55896172,3051.0,3050.9,0.80010381]
[1764753046923,1.55896172,3051.0,3050.9,0.00420381]
[1764753050833,4.76676172,3051.0,3050.9,0.00420381]
[1764753052435,4.76676172,3051.0,3050.9,0.80010381]
[1764753052633,5.92262996,3051.0,3050.9,0.80010381]
[1764753053231,5.92262996,3051.0,3050.9,0.00420381]
[1764753053730,5.92262996,3051.0,3050.9,0.80010381]
[1764753055933,5.92262996,3051.0,3050.9,0.00420381]
[1764753056624,5.92262996,3051.0,3050.9,0.80010381]
[1764753057434,5.92262996,3051.0,3050.9,0.00420381]
[1764753058226,5.92262996,3051.0,3050.9,0.80010381]
[1764753058428,5.92262996,3051.0,3050.9,1.55270381]
[1764753058920,5.13282996,3051.0,3050.9,1.55270381]
[1764753059738,5.92262996,3051.0,3050.9,1.55270381]
[1764753059933,5.92262996,3051.0,3050.9,0.00420381]
[1764753060441,5.92262996,3051.0,3050.9,0.80010381]
[1764753060734,5.92262996,3051.0,3050.9,0.00420381]
[1764753061036,5.92262996,3051.0,3050.9,0.80010381]
[1764753061240,5.92262996,3051.0,3050.9,1.55270381]
[1764753062438,5.92262996,3051.0,3050.9,0.80010381]
[1764753065637,5.92262996,3051.0,3050.9,0.00420381]
[1764753066934,1.5712,3050.4,3050.3,0.00491908]
[1764753067139,7.6996558,3050.4,3050.3,0.00491908]
[1764753067430,45.579,3050.4,3050.3,0.00491908]
[1764753067626,1.76478756,3050.5,3050.3,1.56441908]
[1764753067830,1.92226824,3050.6,3050.5,2.0127]
[1764753068233,2.72706824,3050.6,3050.5,2.0127]
[1764753069230,1.15586824,3050.6,3050.5,2.0127]
[1764753069728,1.92226824,3050.6,3050.5,2.0127]
[1764753070539,2.72706824,3050.6,3050.5,2.0127]
[1764753072430,2.72706824,3050.6,3050.5,1.2564]
[1764753072635,2.72706824,3050.6,3050.5,0.4532]
[1764753073342,1.5712,3050.4,3050.3,0.00882207]
[1764753074044,4.779,3050.4,3050.3,0.00882207]
[1764753075244,1.5712,3050.4,3050.3,0.00882207]
[1764753075440,4.779,3050.4,3050.3,0.00882207]
[1764753076347,5.96179948,3050.4,3050.3,0.00882207]
[1764753077342,5.96179948,3050.4,3050.3,1.56832207]
[1764753077551,3.9742,3050.4,3050.3,1.56832207]
[1764753078049,3.2078,3050.4,3050.3,1.56832207]
[1764753079847,3.9742,3050.4,3050.3,1.56832207]
[1764753080549,3.2078,3050.4,3050.3,1.56832207]
[1764753081351,3.9742,3050.4,3050.3,1.56832207]
[1764753081656,3.2078,3050.4,3050.3,1.56832207]
[1764753082549,3.9742,3050.9,3050.8,1.5595]
[1764753082751,0.00716172,3051.0,3050.9,1.5595]
[1764753086448,1.5712,3051.8,3051.7,1.5595]
[1764753086652,2.75399948,3051.8,3051.7,1.5595]
[1764753087048,2.75399948,3051.8,3051.7,0.8032]
[1764753087453,2.7570413,3051.8,3051.7,1.5595]
[1764753088056,2.7570413,3051.8,3051.7,0.8032]
[1764753088554,2.7570413,3051.8,3051.7,1.5595]
[1764753088747,2.7570413,3051.8,3051.7,0.8032]
[1764753089363,2.7570413,3051.8,3051.7,1.5595]
[1764753090159,2.7570413,3051.8,3051.7,0.8032]
[1764753090559,2.7570413,3051.8,3051.7,1.5595]
[1764753090756,0.76944182,3051.8,3051.7,1.5595]
[1764753090953,0.00304182,3051.8,3051.7,1.5595]
[1764753091556,4.779,3052.3,3052.2,1.5595]
[1764753092555,4.78223263,3052.3,3052.2,1.5595]
[1764753092960,5.96503211,3052.3,3052.2,1.5595]
[1764753093656,3.97743263,3052.3,3052.2,1.5595]
[1764753094062,4.71333263,3052.3,3052.2,1.5595]
[1764753098163,4.71333263,3052.3,3052.2,1.5842]
[1764753099064,3.21103263,3052.3,3052.2,1.5842]
[1764753100150,4.02123263,3052.3,3052.2,1.5842]
[1764753100348,0.00323263,3052.3,3052.2,4.792]
[1764753100864,0.81343263,3052.3,3052.2,4.792]
[1764753101564,1.59473263,3052.3,3052.2,1.5842]
[1764753102263,0.81343263,3052.3,3052.2,1.5842]
[1764753102560,0.00323263,3052.3,3052.2,1.5842]
[1764753103967,0.81343263,3052.3,3052.2,1.5842]
[1764753104166,1.59473263,3052.3,3052.2,1.5842]
[1764753105760,1.5915,3052.1,3052.0,2.0192]
[1764753106259,1.59473263,3052.3,3052.2,1.566]
[1764753108162,1.5915,3052.1,3052.0,2.0192]
[1764753109560,2.77429948,3052.1,3052.0,0.4532]
[1764753110063,1.5915,3052.1,3052.0,2.0192]
[1764753113476,0.8102,3052.1,3052.0,2.0192]
[1764753113874,1.5915,3052.1,3052.0,2.0192]
[1764753118177,1.5915,3052.1,3052.0,0.4532]
[1764753118376,1.5915,3052.1,3052.0,1.2382]
[1764753118677,0.8102,3052.1,3052.0,2.0192]
[1764753118979,1.5915,3052.1,3052.0,2.0192]
[1764753120282,1.5915,3052.1,3052.0,3.19458086]
[1764753120685,0.00323263,3052.3,3052.2,1.566]
[1764753120873,1.59473263,3052.3,3052.2,1.566]
[1764753121274,0.00323263,3052.3,3052.2,1.566]
[1764753121683,4.7993,3052.7,3052.6,0.785]
[1764753122680,4.80330455,3052.7,3052.6,0.78847754]
[1764753124984,4.80330455,3052.7,3052.6,0.00347754]
[1764753125486,4.80330455,3052.7,3052.6,0.75997754]
[1764753126086,4.80330455,3052.7,3052.6,0.00347754]
[1764753126385,4.80330455,3052.7,3052.6,0.75997754]
[1764753127984,4.80330455,3052.7,3052.6,0.00347754]
[1764753129285,1.5228,3052.4,3052.3,0.8838611]
[1764753129584,1.5228,3052.3,3052.2,0.8838611]
[1764753130285,1.5228,3052.3,3052.2,0.88719836]
[1764753130487,1.5228,3052.3,3052.2,0.88726806]
[1764753132388,1.5228,3052.3,3052.2,1.64376806]
[1764753134690,1.5228,3052.3,3052.2,2.39686806]
[1764753134886,0.7817,3052.3,3052.2,2.39686806]
[1764753135187,0.7817,3052.3,3052.2,1.51293726]
[1764753135391,1.5228,3052.3,3052.2,1.51293726]
[1764753136591,0.7817,3052.3,3052.2,1.51293726]
[1764753136893,1.5228,3052.3,3052.2,1.51293726]
[1764753137089,3.2078,3052.5,3052.4,1.5096]
[1764753139384,3.2078,3052.5,3052.4,2.39357795]
[1764753139591,0.00400455,3052.7,3052.6,1.5096]
[1764753139786,0.78570455,3052.7,3052.6,1.5096]
[1764753139988,1.52680455,3052.7,3052.6,1.5096]
[1764753140293,0.78570455,3052.7,3052.6,1.5096]
[1764753140680,0.00400455,3052.7,3052.6,1.5096]
[1764753141088,1.52680455,3052.7,3052.6,1.5096]
[1764753142089,0.78570455,3052.7,3052.6,1.5096]
[1764753142296,0.00400455,3052.7,3052.6,1.5096]
[1764753142683,0.78570455,3052.7,3052.6,1.5096]
[1764753142887,1.52680455,3052.7,3052.6,1.5096]
[1764753143294,0.00400455,3052.7,3052.5,1.32800703]
[1764753143491,2.67727159,3052.6,3052.5,2.08450703]
[1764753143687,1.5228,3052.5,3052.4,0.88390703]
[1764753145997,1.5228,3052.5,3052.4,1.64040703]
[1764753146201,1.5228,3052.5,3052.4,2.39350703]
[1764753147096,1.5228,3052.5,3052.4,1.64040703]
[1764753147290,1.5228,3052.5,3052.4,0.88390703]
[1764753147489,1.5228,3052.5,3052.4,1.64040703]
[1764753147690,1.5228,3052.5,3052.4,2.39350703]
[1764753149797,1.5228,3052.4,3052.3,0.88390703]
[1764753149998,1.5228,3052.3,3052.2,0.88724429]
[1764753150794,1.5228,3052.3,3052.2,0.00333726]
[1764753153107,4.7306,3052.3,3052.2,0.00333726]
[1764753154408,5.88507159,3052.3,3052.2,0.00333726]
[1764753158905,1.5099,3051.8,3051.7,1.91308086]
[1764753159305,1.5099,3051.8,3051.7,2.72358086]
[1764753159910,1.5099,3051.8,3051.7,2.72651018]
[1764753161509,2.66437159,3051.8,3051.7,2.72651018]
[1764753162310,0.733,3051.8,3051.7,2.72651018]
[1764753162610,1.88747159,3051.8,3051.7,2.72651018]
[1764753163115,1.88747159,3051.8,3051.7,1.55112932]
[1764753164011,41.95447159,3052.0,3051.9,1.5482]
[1764753164214,1.15447159,3052.0,3051.9,1.5482]
[1764753164710,1.88747159,3052.0,3051.9,1.5482]